[Event "World Chess Trophy 2018"]
[Site "Tenerife"]
[Date "2018.06.17"]
[Round "1"]
[White "Cacciola, Alfredo"]
[Black "Kovacs, Zoltan"]
[Result "1/2-1/2"]
[ECO "C18"]
[WhiteElo "2219"]
[BlackElo "2146"]
[Annotator "NA"]
[PlyCount "55"]
[EventDate "2018.06.17"]
[EventType "swiss"]
[EventCountry "ESP"]
[SourceTitle "playchess.com"]
[Source "ChessBase"]
[SourceQuality "1"]
[TimeControl "5400+30"]

{[%evp 8,55,7,0,0,0,17,-19,-15,32767,32767,2,11,32767,18,26,11,31,44,31,66,80,61,73,357,368,321,391,406,142,172,127,158,60,55,17,16,20,32767,34,30,30,30,6,12,0,2,0,0,-9]} 1. e4 {[%emt 0:00:00]} e6 {[%emt 0:00:06]} 2. d4 {[%emt 0:00:00]} d5 {[%emt 0:00:06]} 3. Nc3 {[%emt 0:00:00]} Bb4 {[%emt 0:00:32]} 4. e5 {[%emt 0:00:05]} Ne7 {[%emt 0:00:21]} 5. a3 {[%emt 0:00:10]} Bxc3+ {[%emt 0:00:08]} 6. bxc3 {[%emt 1:32:45]} c5 {[%emt 0:00:06]} 7. h4 {[%emt 0:00:37] LiveBook: 799 Games} Qa5 {[%emt 0:06:11]} 8. Bd2 {[%emt 0:00:31]} Qa4 {[%emt 0:00:31]} 9. Qb1 {[%emt 0:01:20] C18: French: 3 Nc3 Bb4: Main line: 7 h4 and 7 Qg4} (9. h5 Nbc6 10. h6 gxh6 11. Nf3 cxd4 12. cxd4 Nxd4 13. Bd3 Nec6 14. Rb1 Rg8 15. Kf1 Nxf3 16. gxf3 b6 {0-1 (27) Sutovsky,E (2642)-Ivanchuk,V (2720) Ashdod 2015}) 9... a6 {[%emt 1:26:59]} 10. Qb3 {[%emt 0:09:43]} Qxb3 {[%emt 0:02:00]} 11. cxb3 {[%emt 0:00:06]} Nbc6 {[%emt 0:05:46]} 12. Nf3 {[%emt 0:23:36]} cxd4 {[%emt 0:03:35]} 13. cxd4 {[%emt 0:00:06]} f6 $146 {[%emt 0:08:40]} ({Predecessor:} 13... Nf5 14. Bc3 h5 15. a4 O-O 16. Bd3 Bd7 {½-½ (43) Staniszewski,P (2415)-Morkisz,B (2220) Katowice 1995}) 14. h5 {[%emt 0:10:50]} Nf5 {[%emt 0:09:25]} 15. h6 {[%emt 0:07:28]} Ncxd4 $2 {[%emt 0:06:56]} (15... g6 $14) 16. Nxd4 {[%emt 0:01:25]} Nxd4 {[%emt 0:00:05]} 17. hxg7 {[%emt 0:01:06]} Rg8 {[%emt 0:00:07]} 18. Rc1 {[%emt 0:03:46]} (18. exf6 $18 Nc2+ 19. Kd1 Nxa1 20. Be2) 18... Rxg7 {[%emt 0:11:48]} 19. exf6 {[%emt 0:00:41]} Rf7 {[%emt 0:00:46]} 20. Bg5 {[%emt 0:17:54]} (20. Bc3 $16 e5 21. Bxd4 (21. Rh5 Be6 $16) 21... exd4 22. Be2) 20... e5 $1 {[%emt 0:04:43]} 21. Be2 {[%emt 0:04:48]} Nxe2 {[%emt 0:01:17]} 22. Kxe2 {[%emt 0:00:01]} Be6 {[%emt 0:01:07]} 23. Ke3 {[%emt 0:17:12]} Kd7 {[%emt 0:04:51]} 24. f4 {[%emt 0:01:35]} Rg8 {[%emt 0:00:20]} 25. g3 {[%emt 0:02:26]} Kd6 {[%emt 0:32:56]} 26. fxe5+ {[%emt 0:04:59]} Kxe5 {[%emt 0:00:35]} 27. Bf4+ {[%emt 0:08:09]} Kxf6 {[%emt 0:31:37]} 28. Kd4 $11 1/2-1/2

[Event "World Chess Trophy 2018"]
[Site "Tenerife"]
[Date "2018.06.17"]
[Round "1"]
[White "De Rosa, Mariagrazia"]
[Black "Kohlweyer, Bernd"]
[Result "1/2-1/2"]
[ECO "B90"]
[WhiteElo "2120"]
[BlackElo "2345"]
[Annotator "ChessBase"]
[PlyCount "34"]
[EventDate "2018.06.17"]
[EventType "swiss"]
[EventCountry "ESP"]
[SourceTitle "playchess.com"]
[Source "ChessBase"]
[SourceQuality "1"]
[TimeControl "5400+30"]

1. e4 {[%emt 0:00:00]} c5 {[%emt 0:00:08]} 2. Nf3 {[%emt 0:00:00]} d6 {[%emt 0:00:07]} 3. d4 {[%emt 0:00:00]} cxd4 {[%emt 0:00:05]} 4. Nxd4 {[%emt 0:00:00]} Nf6 {[%emt 0:00:06]} 5. Nc3 {[%emt 0:00:08]} a6 {[%emt 0:00:06]} 6. Be3 {[%emt 0:00:22]} Nbd7 {[%emt 0:03:34]} 7. h3 {[%emt 0:05:26]} b5 {[%emt 0:16:01]} 8. a4 {[%emt 0:11:48]} bxa4 {[%emt 0:00:16]} 9. Rxa4 {[%emt 0:01:03]} Nc5 {[%emt 0:14:22]} 10. Nc6 {[%emt 0:18:09]} Qc7 {[%emt 0:00:38]} 11. Bxc5 {[%emt 0:01:49]} Qxc6 {[%emt 0:04:35]} 12. Be3 {[%emt 0:00:54]} e6 {[%emt 0:04:19]} 13. Be2 {[%emt 0:02:11]} Nd7 {[%emt 0:11:53]} 14. Qd4 {[%emt 0:08:08]} Be7 {[%emt 0:01:24]} 15. Rc4 {[%emt 0:04:06]} Qb7 {[%emt 0:00:15]} 16. Rb4 {[%emt 0:00:20]} Qc6 {[%emt 0:00:32]} 17. Rc4 {[%emt 0:00:25]} Qb7 {[%emt 0:40:39]} 1/2-1/2

[Event "World Chess Trophy 2018"]
[Site "Tenerife"]
[Date "2018.06.17"]
[Round "1"]
[White "Harstad, Christian"]
[Black "Jacobs, Paul"]
[Result "1-0"]
[ECO "D53"]
[WhiteElo "1985"]
[BlackElo "1867"]
[Annotator "NA"]
[PlyCount "35"]
[EventDate "2018.06.17"]
[EventType "swiss"]
[EventCountry "ESP"]
[SourceTitle "playchess.com"]
[Source "ChessBase"]
[SourceQuality "1"]
[TimeControl "5400+30"]

1. d4 {[%emt 0:00:00]} d5 {[%emt 0:00:10]} 2. c4 {[%emt 0:00:00]} e6 {[%emt 0:00:08]} 3. Nc3 {[%emt 0:00:11]} Nf6 {[%emt 0:00:12]} 4. Nf3 {[%emt 0:00:31]} a6 {[%emt 0:00:13] LiveBook: 372 Games} 5. Bg5 {[%emt 0:04:05]} Be7 {[%emt 0:00:27]} 6. e3 {[%emt 0:01:21]} dxc4 {[%emt 0:01:10]} 7. Bxc4 {[%emt 0:02:05]} b5 {[%emt 0:00:11] D53: Damengambit (Hauptvariante, Abweichungen)} 8. Bd3 {[%emt 0:01:47]} Bb7 {[%emt 0:00:13]} 9. Qe2 {[%emt 0:01:50]} Nbd7 {[%emt 0:00:49]} 10. O-O {[%emt 0:04:28]} (10. e4 h6 11. Bxf6 Bxf6 12. e5 Be7 13. a4 O-O 14. O-O c5 15. axb5 Bxf3 16. Qxf3 cxd4 {½-½ (26) Indjic,A (2536)-Miladinovic,I (2556) Sarajevo 2013}) 10... O-O {[%emt 0:01:16]} 11. e4 {[%emt 0:00:43]} c5 {[%emt 0:00:12]} 12. e5 {[%emt 0:10:12]} Nd5 {[%emt 0:02:01]} 13. Qe4 {[%emt 0:08:12]} g6 {[%emt 0:00:20]} 14. Qh4 $1 {[%emt 0:04:42]} f5 $146 {[%emt 0:01:21]} ({Vorgänger:} 14... f6 15. exf6 N7xf6 16. Qh3 Bc8 17. Qh4 c4 18. Be2 Nxc3 19. bxc3 {0-1 (70) Salcedo,J (1995)-Toro Castaneda,E (1792) Guatape 2016}) 15. Nxd5 {[%emt 0:04:01]} Bxg5 {[%emt 0:02:26]} 16. Nxg5 {[%emt 0:00:47]} h5 {[%emt 0:00:15]} 17. Nf4 {[%emt 0:02:07]} Nxe5 {[%emt 0:00:42]} 18. dxe5 $18 {[%emt 0:00:34]} 1-0

[Event "World Chess Trophy 2018"]
[Site "Tenerife"]
[Date "2018.06.17"]
[Round "1"]
[White "Rutherford, William"]
[Black "Cova, Ennio"]
[Result "1-0"]
[ECO "A47"]
[WhiteElo "1959"]
[BlackElo "1640"]
[Annotator "NA RC"]
[PlyCount "61"]
[EventDate "2018.06.17"]
[EventType "swiss"]
[EventCountry "ESP"]
[SourceTitle "playchess.com"]
[Source "ChessBase"]
[SourceQuality "1"]
[TimeControl "5400+30"]

{[%evp 9,61,0,32767,32767,20,32767,48,32767,32767,32767,47,32767,18,32767,0,32767,32767,32767,29,31,25,8,32767,32767,32767,32767,32767,32767,62,79,81,74,71,71,114,110,109,32767,32767,32767,32767,32767,32767,32767,245,251,438,472,789,848,1323,1197,1220,1272]} 1. d4 {[%emt 0:00:00]} Nf6 {[%emt 0:00:09]} 2. Bf4 {[%emt 0:00:05]} e6 {[%emt 0:02:06]} 3. e3 {[%emt 0:01:04]} Be7 {[%emt 0:05:16]} 4. Bd3 {[%emt 0:05:29]} b6 {[%emt 0:04:12]} 5. Nf3 {[%emt 0:04:15]} Bb7 {[%emt 0:00:19]} 6. c4 {[%emt 0:02:02] A47: Damenindisch (ohne c2-c4)} (6. h3 O-O 7. Nbd2 c5 8. c3 cxd4 9. exd4 d6 10. O-O Nbd7 11. Re1 Re8 12. Bh2 a6 13. a4 Nf8 14. Ng5 Qd7 15. Qe2 Bc6 16. Bxa6 Bxa4 17. Bd3 Bc6 18. Nc4 {1-0 (82) Giri,A (2755)-Tomashevsky,E (2731) Moscow 2016}) 6... d6 {[%emt 0:01:29]} 7. Nc3 {[%emt 0:00:31]} Nbd7 {[%emt 0:00:57]} 8. h3 {[%emt 0:04:15]} O-O {[%emt 0:08:16]} 9. O-O {[%emt 0:00:19]} Re8 {[%emt 0:08:42]} 10. e4 {[%emt 0:06:10]} e5 {[%emt 0:10:51]} 11. Be3 $146 {[%emt 0:06:33]} ({Vorgänger:} 11. dxe5 dxe5 12. Bg5 {½-½ (67) Bublei,P (2354)-Krapivin,A (2443) Moscow 2015}) 11... exd4 $1 {[%emt 0:04:49]} 12. Nxd4 {[%emt 0:01:49]} Bf8 {[%emt 0:01:57]} 13. f3 {[%emt 0:01:15]} a6 {[%emt 0:05:50]} 14. Qd2 {[%emt 0:01:48]} g6 {[%emt 0:08:00]} 15. Rfe1 {[%emt 0:03:38]} Bg7 {[%emt 0:00:35]} 16. Rad1 {[%emt 0:00:43]} Rc8 {[%emt 0:05:15]} 17. Bc2 {[%emt 0:02:33]} Ne5 {[%emt 0:01:27]} 18. b3 {[%emt 0:01:17]} Nc6 {[%emt 0:03:05]} 19. Nde2 {[%emt 0:03:20]} Ne5 {[%emt 0:04:46]} 20. Nf4 {[%emt 0:04:46]} Nfd7 {[%emt 0:03:42]} 21. Nfd5 {[%emt 0:00:58]} Nc5 {[%emt 0:04:05]} (21... c6 $14) 22. Bg5 {[%emt 0:02:39]} f6 {[%emt 0:00:47]} 23. Bh4 {[%emt 0:03:14]} g5 {[%emt 0:03:06]} 24. Bf2 {[%emt 0:01:30]} Ne6 {[%emt 0:00:26]} 25. Ne2 {[%emt 0:00:58]} Bxd5 {[%emt 0:01:13]} 26. exd5 {[%emt 0:04:16]} Nf8 {[%emt 0:00:33]} 27. Nd4 {[%emt 0:01:40]} c5 $2 {[%emt 0:04:50]} (27... a5 28. g3 Ra8) 28. dxc6 {[%emt 0:02:50]} Nxc6 $18 {[%emt 0:00:37]} (28... Qc7 $142 29. Nf5 Rcd8 30. Qd5+ Kh8) 29. Nxc6 {[%emt 0:00:12]} Rxe1+ {[%emt 0:00:37]} 30. Rxe1 {[%emt 0:00:12]} Rxc6 {[%emt 0:00:12]} 31. Qd5+ {[%emt 0:00:06]} 1-0

[Event "World Chess Trophy 2018"]
[Site "Tenerife"]
[Date "2018.06.17"]
[Round "1"]
[White "Heimbaecher, Peter"]
[Black "Aledo Yanguas, David"]
[Result "0-1"]
[ECO "C00"]
[WhiteElo "1758"]
[BlackElo "1986"]
[Annotator "NA RC"]
[PlyCount "85"]
[EventDate "2018.06.17"]
[EventType "swiss"]
[EventCountry "ESP"]
[SourceTitle "playchess.com"]
[Source "ChessBase"]
[SourceQuality "1"]
[TimeControl "5400+30"]

{[%evp 21,84,-28,32767,8,32767,32767,-11,-37,32767,32767,32767,0,8,0,32767,32767,32767,0,32767,32767,40,22,45,28,93,32767,32767,32767,41,11,31,37,35,32767,32767,32767,32767,-11,0,-534,-590,-704,-804,-741,-160,-744,-600,-800,-421,-416,-449,-425,-470,-520,-477,-514,32767,-509,-690,-614,32767,-713,-902,-29991,-29992]} 1. e4 {[%emt 0:01:16]} e6 {[%emt 0:00:05]} 2. g3 {[%emt 0:00:43]} d5 {[%emt 0:00:06]} 3. exd5 {[%emt 0:00:20] C00: French: Unusual White 2nd moves} (3. Bg2 dxe4 4. Bxe4 Nf6 5. Bg2 Bd7 6. Nf3 Bc6 7. O-O g6 8. d4 Bg7 9. c4 O-O 10. Nc3 Ne4 11. Re1 Nxc3 12. bxc3 {1-0 (32) Artemiev,V (2691)-Ivanchuk,V (2726) Huaian 2017}) 3... exd5 {[%emt 0:00:09]} 4. Bg2 {[%emt 0:00:09]} Nf6 {[%emt 0:00:20]} 5. Qe2+ {[%emt 0:00:49]} Be7 {[%emt 0:00:43]} 6. d4 {[%emt 0:01:02]} O-O {[%emt 0:00:09]} 7. Be3 $146 {[%emt 0:00:47]} ({Predecessor:} 7. Nf3 b6 8. b3 Ba6 9. c4 dxc4 10. bxc4 Bb4+ {0-1 (19) Jacob,T (1651)-Dorsch,A (2042) Leipzig 2011}) 7... Re8 {[%emt 0:00:58]} 8. Nf3 {[%emt 0:01:59]} Bg4 {[%emt 0:01:01]} 9. h3 {[%emt 0:00:42]} Bh5 {[%emt 0:03:28]} 10. g4 {[%emt 0:00:28]} Bg6 {[%emt 0:00:27]} 11. Ne5 {[%emt 0:03:14]} Bd6 {[%emt 0:02:04]} 12. Nxg6 {[%emt 0:00:53]} hxg6 {[%emt 0:00:09]} 13. Nd2 {[%emt 0:03:26]} c5 {[%emt 0:01:57]} 14. Nb3 {[%emt 0:03:50]} cxd4 {[%emt 0:01:18]} 15. Nxd4 {[%emt 0:00:12]} Nc6 {[%emt 0:01:13]} 16. O-O-O {[%emt 0:07:55]} Nxd4 {[%emt 0:02:06]} 17. Rxd4 {[%emt 0:00:04]} Bc5 {[%emt 0:00:21]} 18. Rd3 {[%emt 0:10:45]} Qa5 {[%emt 0:00:34]} 19. Kb1 {[%emt 0:11:01]} Qb5 {[%emt 0:12:24]} 20. Qd1 {[%emt 0:05:04]} Bxe3 {[%emt 0:02:02]} 21. fxe3 {[%emt 0:01:07]} Re5 {[%emt 0:01:30]} 22. h4 {[%emt 0:02:34]} Rd8 {[%emt 0:07:16]} ({Black should try} 22... Rae8 $14) 23. Rf1 {[%emt 0:03:36]} Ne4 {[%emt 0:01:06]} 24. Rf4 {[%emt 0:07:09]} Qe8 {[%emt 0:06:52]} 25. Qh1 {[%emt 0:08:00]} Nf6 {[%emt 0:04:44]} 26. g5 {[%emt 0:04:05]} Nh5 {[%emt 0:06:53]} ({Ein No Go ist} 26... Rxe3 $6 27. Rxe3 Qxe3 28. Rf3 $16) 27. Rf3 {[%emt 0:02:03]} d4 {[%emt 0:01:03]} 28. Qc1 {[%emt 0:07:20]} dxe3 {[%emt 0:00:36]} 29. Rfxe3 {[%emt 0:04:09]} Rxd3 {[%emt 0:03:33]} 30. Rxd3 $4 {[%emt 0:00:17] [#]} (30. Rxe5 $11 {and White stays safe.} Qxe5 31. cxd3) 30... Nf4 $1 {[%emt 0:00:21]} 31. Qxf4 {[%emt 0:04:00]} Re1+ {[%emt 0:00:06]} 32. Qc1 {[%emt 0:00:11]} Rxc1+ {[%emt 0:00:03]} 33. Kxc1 {[%emt 0:00:10]} Qe1+ {[%emt 0:00:02]} 34. Rd1 {[%emt 0:00:16]} Qxh4 {[%emt 0:00:49]} 35. Bxb7 {[%emt 0:00:28]} Qxg5+ {[%emt 0:00:15]} 36. Kb1 {[%emt 0:00:04]} f5 {[%emt 0:00:43]} 37. c4 {[%emt 0:01:13]} f4 {[%emt 0:00:53]} 38. Bd5+ {[%emt 0:00:13]} Kf8 {[%emt 0:00:09]} 39. b4 {[%emt 0:02:01]} Qf5+ {[%emt 0:00:59]} 40. Kb2 {[%emt 0:00:04]} f3 {[%emt 0:00:36]} 41. Rf1 {[%emt 0:00:54]} f2 {[%emt 0:00:25]} 42. Kc3 {[%emt 0:00:35]} Qh3+ {[%emt 0:00:15]} 43. Kd4 {[%emt 0:06:22]} 0-1

[Event "World Chess Trophy 2018"]
[Site "Tenerife"]
[Date "2018.06.17"]
[Round "1"]
[White "Mamani Beltran, Deniman"]
[Black "Ciampi, Vincenzo"]
[Result "0-1"]
[ECO "B15"]
[WhiteElo "1656"]
[BlackElo "1959"]
[Annotator "NA RC"]
[PlyCount "42"]
[EventDate "2018.06.17"]
[EventType "swiss"]
[EventCountry "ESP"]
[SourceTitle "playchess.com"]
[Source "ChessBase"]
[SourceQuality "1"]
[TimeControl "5400+30"]

1. e4 {[%emt 0:14:27]} c6 {[%emt 0:01:43]} 2. d4 {[%emt 0:00:13]} d5 {[%emt 0:00:08]} 3. Nc3 {[%emt 0:00:07]} dxe4 {[%emt 0:00:06]} 4. Nxe4 {[%emt 0:00:17]} Nf6 {[%emt 0:00:14]} 5. Ng5 {[%emt 0:00:11]} h6 {[%emt 0:00:31]} 6. N5f3 {[%emt 0:00:07]} Bf5 {[%emt 0:01:48]} 7. Bc4 {[%emt 0:00:14] B15: Caro-Kann: 3 Nc3: 3...g6 and 3...dxe4 4 Nxe4 Nf6 5 Nxf6+ exf6} e6 {[%emt 0:00:37]} (7... Nbd7 8. Ne2 e6 9. Ng3 Bh7 10. O-O Be7 11. Bd3 Bxd3 12. Qxd3 O-O 13. Rd1 Rc8 14. Qe2 Qa5 {½-½ (34) Sukandar,I (2387)-Blohberger,F (2367) Villorba 2018}) 8. Ne2 {[%emt 0:00:58]} Bd6 {[%emt 0:03:00]} 9. O-O {[%emt 0:01:20]} Qc7 {[%emt 0:00:34]} 10. h3 $146 {[%emt 0:01:06]} ({Predecessor:} 10. Ng3 Bh7 11. Re1 O-O 12. Be3 Nbd7 13. Qd2 Ng4 14. h3 Nxe3 15. Qxe3 Bxg3 16. fxg3 Qxg3 17. Bxe6 fxe6 18. Qxe6+ {0-1 (23) Berne,C-Taunay,J Lyon 1999}) 10... Nbd7 {[%emt 0:00:25]} 11. Be3 {[%emt 0:00:22]} g5 {[%emt 0:02:41]} 12. Qd2 {[%emt 0:05:57]} g4 {[%emt 0:09:53]} 13. Nh4 {[%emt 0:00:15]} gxh3 {[%emt 0:03:04]} 14. g3 {[%emt 0:00:15]} Ne4 {[%emt 0:04:25]} 15. Qe1 {[%emt 0:00:40]} O-O-O {[%emt 0:14:49]} 16. Kh2 {[%emt 0:03:20]} (16. Nxf5 $17 exf5 17. Bxf7) 16... Ndf6 {[%emt 0:01:14]} 17. Nxf5 {[%emt 0:01:06]} exf5 {[%emt 0:53:48]} 18. Bxf7 $2 {[%emt 0:00:15]} (18. Nc3) 18... Qxf7 {[%emt 0:00:00]} 19. Kxh3 {[%emt 0:00:23]} Ng5+ {[%emt 0:00:00]} 20. Kg2 {[%emt 0:02:17]} Ng4 $19 {[%emt 0:00:00]} 21. Qa5 {[%emt 0:01:02]} Qh5 {[%emt 0:00:00]} 0-1

[Event "World Chess Trophy 2018"]
[Site "Tenerife"]
[Date "2018.06.17"]
[Round "1"]
[White "Vannelli, Vittorio"]
[Black "Pirrello, Christian"]
[Result "0-1"]
[ECO "B72"]
[WhiteElo "1638"]
[BlackElo "1935"]
[Annotator "NA RC"]
[PlyCount "116"]
[EventDate "2018.06.17"]
[EventType "swiss"]
[EventCountry "ESP"]
[SourceTitle "playchess.com"]
[Source "ChessBase"]
[SourceQuality "1"]
[TimeControl "5400+30"]

1. e4 {[%emt 0:00:00]} g6 {[%emt 0:00:24]} 2. d4 {[%emt 0:00:00]} Bg7 {[%emt 0:00:05]} 3. Nc3 {[%emt 0:00:06]} c5 {[%emt 0:00:51]} 4. Nf3 {[%emt 0:01:39]} cxd4 {[%emt 0:01:49]} 5. Nxd4 {[%emt 0:00:16]} Nc6 {[%emt 0:00:08]} 6. Be3 {[%emt 0:02:26]} d6 {[%emt 0:06:13]} (6... Nf6 $1 $11) 7. Be2 {[%emt 0:03:14] LiveBook: 55 Games} Nf6 {[%emt 0:00:35]} 8. O-O {[%emt 0:01:14]} O-O {[%emt 0:03:27]} 9. Nb3 {[%emt 0:01:19]} Ne5 {[%emt 0:04:44]} 10. h3 {[%emt 0:05:08]} Be6 {[%emt 0:01:30]} 11. f4 {[%emt 0:04:39] B72: Sicilian Dragon: 6 Be3, lines with h3+Bc4 and sidelines} (11. Nd4 Qc8 12. Nxe6 fxe6 13. f4 Nc4 14. Bxc4 Qxc4 15. Qd3 Rfc8 16. Bd4 b5 17. a3 a6 18. Rad1 Qxd3 19. cxd3 {½-½ (29) Naroditsky,D (2403)-Paragua,M (2476) Irvine 2010}) 11... Nc4 {[%emt 0:00:23]} 12. Bxc4 {[%emt 0:01:35]} Bxc4 {[%emt 0:04:59]} 13. Rf2 {[%emt 0:00:35]} a6 $146 {[%emt 0:00:52]} ({Predecessor:} 13... b5 14. Nd2 b4 15. Ne2 Bxe2 16. Qxe2 d5 17. Bc5 dxe4 18. Rd1 Qc7 {0-1 (45) Groselj,P (2015)-Slepankova,R (2005) Litomysl 1994}) 14. Qf3 {[%emt 0:05:22]} Qc7 {[%emt 0:03:12]} 15. Rd2 {[%emt 0:03:13]} b5 {[%emt 0:01:21]} 16. Re1 {[%emt 0:09:42]} Nd7 {[%emt 0:02:45]} 17. Bd4 {[%emt 0:07:58]} Nb6 {[%emt 0:08:17]} 18. Bxg7 {[%emt 0:06:35]} Kxg7 {[%emt 0:00:34]} 19. f5 {[%emt 0:05:46]} b4 {[%emt 0:01:01]} 20. Nd5 {[%emt 0:06:20]} Bxd5 {[%emt 0:00:48]} 21. exd5 {[%emt 0:00:53]} Nc4 {[%emt 0:00:33]} 22. f6+ {[%emt 0:09:39]} exf6 {[%emt 0:00:33]} 23. Rf2 {[%emt 0:01:04]} f5 {[%emt 0:00:48]} 24. g4 {[%emt 0:07:11]} Ne5 {[%emt 0:00:52]} 25. Qe3 {[%emt 0:06:18]} (25. Qf4 $17 {was worth a try.}) 25... fxg4 {[%emt 0:01:01]} 26. Qf4 {[%emt 0:04:28]} f5 {[%emt 0:00:31]} 27. Nd4 {[%emt 0:00:19]} Rae8 {[%emt 0:01:25]} 28. Ne6+ {[%emt 0:02:52]} Rxe6 {[%emt 0:00:08]} 29. dxe6 {[%emt 0:00:02]} Nf3+ $2 {[%emt 0:01:03]} (29... Qc5 $17 30. Kg2 h5) 30. Rxf3 $1 {[%emt 0:00:18]} gxf3 {[%emt 0:00:07]} 31. Qd4+ {[%emt 0:00:34]} Kg8 {[%emt 0:00:25]} 32. e7 {[%emt 0:00:34]} Re8 {[%emt 0:02:01]} 33. Qd5+ {[%emt 0:01:25]} Kg7 $11 {[%emt 0:00:31]} 34. Qd4+ {[%emt 0:01:08]} Kf7 {[%emt 0:00:13]} 35. Qd5+ {[%emt 0:00:29]} Kf6 {[%emt 0:00:42]} 36. Qe6+ $2 {[%emt 0:00:32]} Kg7 {[%emt 0:00:11]} 37. Kf2 {[%emt 0:01:07]} Qxc2+ {[%emt 0:00:48]} 38. Kxf3 {[%emt 0:00:17]} Qd3+ {[%emt 0:00:10]} 39. Kg2 {[%emt 0:00:29]} f4 {[%emt 0:02:14]} 40. Qg4 {[%emt 0:01:22]} Qg3+ $2 {[%emt 0:00:18]} (40... Qd5+ $19 41. Kf2 Qd4+ 42. Kf3 Qd5+ 43. Kf2 Qd4+ 44. Kf3 Qxb2 45. Qxf4 Qf6 46. Qxf6+ Kxf6) 41. Qxg3 {[%emt 0:00:21]} fxg3 {[%emt 0:00:06]} 42. Re6 {[%emt 0:00:29]} d5 {[%emt 0:01:07]} 43. Kxg3 {[%emt 0:00:22]} Kf7 {[%emt 0:00:20]} 44. Rxa6 {[%emt 0:00:19]} Kxe7 {[%emt 0:01:03]} 45. Rb6 {[%emt 0:00:26]} Ra8 {[%emt 0:00:28]} 46. Rxb4 {[%emt 0:00:16]} Rxa2 {[%emt 0:00:07]} 47. Kf4 {[%emt 0:00:15]} Kd6 {[%emt 0:00:20]} 48. Ke3 {[%emt 0:01:21]} Ra1 {[%emt 0:02:44]} 49. Rh4 {[%emt 0:00:38]} (49. Rb7 $17) 49... h5 {[%emt 0:00:35]} 50. Rb4 {[%emt 0:00:36]} g5 {[%emt 0:04:02]} 51. h4 {[%emt 0:00:36]} Kc5 {[%emt 0:03:21]} 52. Rb8 {[%emt 0:00:49]} g4 $2 {[%emt 0:00:22]} ({Don't take} 52... gxh4 53. Rc8+ Kd6 54. Rd8+ Ke5 55. Re8+ Kf5 56. Rf8+ Ke6 57. Re8+ Kf7 58. Rh8 $19) (52... d4+ $19 {and Black stays clearly on top.} 53. Kd3 gxh4 54. b4+ Kd6 55. Rb6+ Ke7) 53. Rh8 {[%emt 0:00:53]} Re1+ {[%emt 0:00:05]} 54. Kd2 {[%emt 0:00:55]} Re5 {[%emt 0:00:11]} 55. Rg8 $2 {[%emt 0:00:25]} (55. Kd3 $17 {nothing else works.}) 55... Kd4 {[%emt 0:00:51]} 56. b4 {[%emt 0:00:27]} Kc4 $11 {[%emt 0:01:19]} ({Better is} 56... Ke4 $19 57. b5 Re6) 57. Rg5 {[%emt 0:00:10]} Re4 {[%emt 0:05:06]} 58. b5 {[%emt 0:00:44]} g3 {[%emt 0:02:34]} 0-1

[Event "World Chess Trophy 2018"]
[Site "Tenerife"]
[Date "2018.06.17"]
[Round "2"]
[White "Kohlweyer, Bernd"]
[Black "Efremov, Vladislav"]
[Result "1-0"]
[ECO "D35"]
[WhiteElo "2345"]
[BlackElo "1968"]
[Annotator "NA"]
[PlyCount "65"]
[EventDate "2018.06.17"]
[EventType "swiss"]
[EventCountry "ESP"]
[SourceTitle "playchess.com"]
[Source "ChessBase"]
[SourceQuality "1"]
[TimeControl "5400+30"]

1. d4 {[%emt 0:00:00]} Nf6 {[%emt 0:00:06]} 2. c4 {[%emt 0:00:00]} e6 {[%emt 0:00:05]} 3. Nc3 {[%emt 0:03:28]} d5 {[%emt 0:00:15]} 4. cxd5 {[%emt 0:00:10]} exd5 {[%emt 0:00:10]} 5. Bg5 {[%emt 0:00:07]} Bb4 {[%emt 0:03:09]} 6. e3 {[%emt 0:01:26]} h6 {[%emt 0:03:15]} 7. Bh4 {[%emt 0:00:51]} Qd6 {[%emt 0:07:44] D35: Queen's Gambit Declined: Exchange Variation} (7... g5 8. Bg3 Ne4 9. Qb3 c5 10. Bd3 Nc6 11. Bxe4 dxe4 12. d5 Na5 13. Qa4+ Qd7 14. Qxd7+ Bxd7 15. Nge2 {½-½ (29) Ding,L (2772)-Lodici,L (2407) Antalya 2017}) 8. Bd3 {[%emt 0:01:51]} O-O {[%emt 0:11:28]} 9. Nge2 {[%emt 0:01:00]} Ne4 {[%emt 0:05:34]} 10. O-O {[%emt 0:08:03]} Bf5 $146 {[%emt 0:04:40]} ({Predecessor:} 10... Nxc3 11. bxc3 Ba5 12. Rb1 c6 13. f3 Bc7 14. Bg3 Qe7 15. e4 dxe4 16. fxe4 {½-½ (70) Tomczak,M (2372)-Dvirnyy,D (2532) Katowice 2017}) 11. f3 {[%emt 0:08:29]} Nxc3 {[%emt 0:00:15]} 12. bxc3 {[%emt 0:00:04]} Bxd3 {[%emt 0:00:05]} 13. Qxd3 {[%emt 0:00:08]} Ba5 {[%emt 0:01:38]} 14. e4 {[%emt 0:00:14]} dxe4 {[%emt 0:06:02]} 15. fxe4 {[%emt 0:00:23]} Nc6 {[%emt 0:03:57]} 16. Rf3 {[%emt 0:07:11]} Bb6 {[%emt 0:06:06]} 17. Kh1 {[%emt 0:00:37]} Ne7 {[%emt 0:02:40]} 18. e5 {[%emt 0:04:58]} Qd7 {[%emt 0:09:18]} 19. Bxe7 {[%emt 0:03:12]} Qxe7 {[%emt 0:02:43]} 20. Ng3 {[%emt 0:00:04]} g6 {[%emt 0:09:03]} 21. Ne4 {[%emt 0:01:24]} c6 {[%emt 0:00:58]} 22. Raf1 {[%emt 0:01:07]} Bd8 {[%emt 0:02:52]} 23. Qe3 {[%emt 0:05:57]} Kg7 {[%emt 0:00:15]} 24. Rh3 {[%emt 0:00:57]} Rh8 {[%emt 0:00:35]} 25. Nd6 {[%emt 0:00:51]} Qg5 {[%emt 0:04:12]} 26. Rxf7+ {[%emt 0:00:08]} Kg8 {[%emt 0:00:04]} 27. Rg3 {[%emt 0:00:45]} Rh7 {[%emt 0:01:30]} 28. Rxg5 {[%emt 0:00:14]} Bxg5 {[%emt 0:00:13]} 29. Qf3 {[%emt 0:00:10]} Rxf7 {[%emt 0:02:15]} 30. Qxf7+ {[%emt 0:00:06]} Kh8 {[%emt 0:00:04]} 31. Qxg6 {[%emt 0:01:26]} Rf8 {[%emt 0:00:15]} 32. Nf7+ {[%emt 0:00:04]} Rxf7 {[%emt 0:00:03]} 33. Qxf7 {[%emt 0:00:05]} 1-0